Workbook

Sheet CPTI
B1: Règle des 80 % - Calcul du capital de pension CPTI maximal à assurer | O1: Parameters
B4: Données Générales
O5: =NOW()-60 -> 2023-08-27T09:48:49.680
B6: Date du calcul | I6: 2023-01-01 | O6: Eindleeftijd | P6: ongehuwd | Q6: gehuwd | S6: Feitelijk samenwonend = Ongehuwd
B7: Nom du preneur d'assurance | I7: Personne X | O7: 60 | P7: 15.6389 | Q7: 18.3749 | S7: Wettelijk samenwonend = Gehuwd | Y7: Contracttypes 2de pijler
B8: Sexe | I8: Homme | O8: 61 | P8: 15.198 | Q8: 17.9277 | Y8: Assurance de groupe
B9: Date de naissance | I9: 1990-01-01 | O9: 62 | P9: 14.7559 | Q9: 17.4763 | S9: Samenlevingsvorm | T9: Marié(e) | U9: 1 | Y9: EIP
O10: 63 | P10: 14.3133 | Q10: 17.0209 | T10: Cohabitant légal | U10: 2 | Y10: PLCI
B11: Age | I11: =TRUNC(DAYS360(I9,I6)/360) -> 33 | J11: =TRUNC(DAYS360(I9,I6)/30-TRUNC(DAYS360(I9,I6)/360)*12) -> 0 | O11: 64 | P11: 13.8705 | Q11: 16.5621 | T11: Célibataire | U11: 3 | Y11: INAMI
B12: Age normal de Pension (AA) | I12: =IF(I9<=DATE(1959,12,31),65,IF(I9<=DATE(1963,12,31),66,67)) -> 67 | J12: 0 | O12: 65 | P12: 13.4282 | Q12: 16.1004 | T12: Cohabitant | U12: 4 | Y12: ADE
B13: Date fin du contrat | I13: =DATE(YEAR(I9)+I12,MONTH(I9)+1,1) -> 2057-02-01 | T13: Veuve / Veuf | U13: 5 | Y13: CPTI
B14: Sitation familiale | I14: Célibataire | O14: Geslacht | P14: Homme | Q14: 1 | T14: Divorcé | U14: 6
P15: Femme | Q15: 2
B16: Date de début de l'activité professionnelle (quel que soit le statut) | I16: 2020-01-01
B17: Années d'activité en tant qu'indépendant avant 2021 | G17: (première cellule YY ; deuxième cellule MM) | I17: 0 | J17: 0
B18: Années d'activité en tant que salarié avant 2021 | G18: (première cellule YY ; deuxième cellule MM) | I18: =IF(YEAR(I16)>=2021,0,ROUNDDOWN((DAYS360(I16,"01/01/2021")-(I17*360)-(J17*30))/360,0)) -> 1 | J18: =IF(YEAR(I16)>=2021,0,ROUNDDOWN(((DAYS360(I16,"01/01/2021")-(I17*360)-(J17*30))-(I18*360))/30,0)) -> 0
B19: Rémunération brute 2020 | I19: 0
B20: Date de début de la première CPTI | I20: 2020-01-01 | O20: Eindleeftijd | P20: 0% I / 0% O | Q20: 2% I / 0% O | R20: 0% I / 80% O | S20: 2% I / 80% O
B21: Années déjà prestées depuis la date de début de la première CPTI jusqu'à la date de calcul | I21: =TRUNC(DAYS360(I20,I6)/360) -> 3 | J21: =TRUNC(DAYS360(I20,I6)/30-TRUNC(DAYS360(I20,I6)/360)*12) -> 0 | O21: 40 | P21: 17.7063 | Q21: 23.6733 | R21: 19.0075 | S21: 26.0421
B22: Années encore à prester | I22: =IF($J$12>=$J$11,$I$12-$I$11,$I$12-($I$11+1)) -> 34 | J22: =IF($J$12>=$J$11,$J$12-$J$11,12+$J$12-$J$11) -> 0 | O22: 41 | P22: 17.5247 | Q22: 23.3225 | R22: 18.8616 | S22: 25.7236
B23: Années déjà prestées (quel que soit le statut) depuis le 01/01/2018 jusqu'à la première CPTI (max 10) | H23: Valider | I23: =IF(VLOOKUP(H23,$O$82:$P$83,2,FALSE)=1,IF(YEAR(I16)>=YEAR(I20),0,MIN(TRUNC(DAYS360(MAX(DATE(2018,1,1),I16),I20)/360),10)),0) -> 0 | J23: =IF(VLOOKUP(H23,$O$82:$P$83,2,FALSE)=1,IF(I23=10,0,TRUNC(DAYS360(MAX(DATE(2018,1,1),I16),I20)/30)-TRUNC(DAYS360(MAX(DATE(2018,1,1),I16),I20)/360)*12),0) -> 0 | O23: 42 | P23: 17.3371 | Q23: 22.9655 | R23: 18.7101 | S23: 25.3983
B24: Nombre de mois d'activité professionnelle | I24: =MIN((($I$21*12)+$J$21) + (($I$22*12)+$J$22) + (($I$23*12)+$J$23),480) -> 444 | O24: 43 | P24: 17.1434 | Q24: 22.6024 | R24: 18.5526 | S24: 25.0659
O25: 44 | P25: 16.9436 | Q25: 22.2331 | R25: 18.389 | S25: 24.7264
O26: 45 | P26: 16.7376 | Q26: 21.8578 | R26: 18.2192 | S26: 24.3799
B27: Détermination du revenu de référence | I27: Année de calcul | K27: =YEAR(I6) -> 2023 | O27: 46 | P27: 16.5254 | Q27: 21.4767 | R27: 18.043 | S27: 24.0264
O28: 47 | P28: 16.3069 | Q28: 21.0899 | R28: 17.8603 | S28: 23.6658
B29: Le revenu de référence de l'actuelle année civile X est égal à la moyenne du revenu professionnel imposable corrigé des trois années civiles précédentes (X-3, X-2 et X-1). | O29: 48 | P29: 16.0821 | Q29: 20.6974 | R29: 17.6709 | S29: 23.2982
B30: Le revenu professionnel imposable corrigé = le revenu du travailleur indépendant ou de l'aidant indépendant qualifié comme bénéfices ou profits, ou les rémunérations du conjoint aidant avec | O30: 49 | P30: 15.851 | Q30: 20.2996 | R30: 17.4747 | S30: 22.9236
B31: maxi-statut (hors bénéfices et profits d'une activité professionnelle antérieure et les plus-values), diminuées des frais professionnels, exception faite des cotisations sociales payées | O31: 50 | P31: 15.6137 | Q31: 19.8966 | R31: 17.2717 | S31: 22.542
B32: (comme travailleur indépendant, comme aidant indépendant ou comme conjoint aidant avec maxi-statut) et des primes payées pour la PLCI et PLC sociale. | O32: 51 | P32: 15.3701 | Q32: 19.4886 | R32: 17.0616 | S32: 22.1537
O33: 52 | P33: 15.1203 | Q33: 19.0758 | R33: 16.8445 | S33: 21.7586
B34: Principes applicables : | O34: 53 | P34: 14.8644 | Q34: 18.6585 | R34: 16.6202 | S34: 21.3568
B35: 1) Un revenu professionnel imposable corrigé négatif pour une ou plusieurs des années civiles précédentes n'est pas mis à 0, mais est repris dans le calcul de la moyenne. | O35: 54 | P35: 14.6025 | Q35: 18.2371 | R35: 16.3886 | S35: 20.9486
B36: 2) Si l'activité professionnelle n'a pas été exercée pendant l'année civile entière, le revenu professionnel imposable corrigé n'est pas extrapolé sur une base annuelle. | O36: 55 | P36: 14.3347 | Q36: 17.8117 | R36: 16.1498 | S36: 20.5341
B37: 3) Si, dans une ou plusieurs des trois années civiles précédentes, l'assuré n'a pas exercé une activité professionnelle produisant des bénéfices ou des profits ou n'a pas été actif comme | O37: 56 | P37: 14.0612 | Q37: 17.3828 | R37: 15.9037 | S37: 20.1135
B38: conjoint aidant avec maxi-statut ou comme aidant indépendant, il faut compléter par "NVT" (pas d'application). | O38: 57 | P38: 13.782 | Q38: 16.9507 | R38: 15.6503 | S38: 19.687
B39: 4) Pour l'année civile dans laquelle l'activité professionnelle de l'assuré a débuté, le revenu professionnel imposable corrigé estimé de l'année civile même est pris en considération | O39: 58 | P39: 13.4974 | Q39: 16.5157 | R39: 15.3897 | S39: 19.2548
B40: (Si ce revenu n’est pas encore connu, celui-ci, peut être estimé) | O40: 59 | P40: 13.2077 | Q40: 16.0783 | R40: 15.1219 | S40: 18.8174
B41: Vous pouvez déterminer le revenu de référence en reprenant les chiffres de la déclaration ou de l'avertissement extrait de rôle | O41: 60 | P41: 12.913 | Q41: 15.6389 | R41: 14.847 | S41: 18.3749
O42: 61 | P42: 12.6137 | Q42: 15.198 | R42: 14.5651 | S42: 17.9277
B43: 1. Catégorie 'Bénéfices' | O43: 62 | P43: 12.31 | Q43: 14.7559 | R43: 14.2764 | S43: 17.4763
B44: Bénéfices = revenus comme indépendant dans le cadre d'une activité dans des entreprises industrielles, commerciales ou agricoles : bénéfice brut de l'exploitation proprement dite | O44: 63 | P44: 12.0023 | Q44: 14.3133 | R44: 13.981 | S44: 17.0209
B45: ="Si le code “1600 of 2600” est complété pour au moins une année dans " & K27-3 & ", " & K27-2 & ", " & K27-1 & " ?" -> Si le code “1600 of 2600” est complété pour au moins une année dans 2020, 2021, 2022 ? | O45: 64 | P45: 11.6908 | Q45: 13.8705 | R45: 13.6791 | S45: 16.5621
B46: =" Si oui : Veuillez remplir les champs pour les 3 années." -> Si oui : Veuillez remplir les champs pour les 3 années. | O46: 65 | P46: 11.3761 | Q46: 13.4282 | R46: 13.3711 | S46: 16.1004
B47: =" Si non: Veuillez remplir le montant pour l'année " & $K$27 & "." -> Si non: Veuillez remplir le montant pour l'année 2023.
O48: GWP | P48: min | Q48: max (25 %) | R48: max
B49: Bénéfices | I49: ="X-3 (" & $K$27-3 & ")" -> X-3 (2020) | J49: ="X-2 (" & $K$27-2 & ")" -> X-2 (2021) | K49: ="X-1 (" & $K$27-1 & ")" -> X-1 (2022) | L49: ="X (" & $K$27 & ")" -> X (2023) | O49: 2012 | P49: 12085.2 | Q49: 15781.6725 | R49: 63126.69
B50: 1600 / 2600 bénéfice brut de l'exploitation proprement dite (+) | I50: 0 | J50: 0 | K50: 0 | L50: 0 | O50: 2013 | P50: 12574.11 | Q50: 16073.8125 | R50: 64295.25
B51: 1606 / 2606 autres frais professionnels (-) | I51: 0 | J51: 0 | K51: 0 | L51: 0 | O51: 2014 | P51: 12731.29 | Q51: =R51/4 -> 16123.6825 | R51: 64494.73
B52: 1611 / 2611 rémunérations attribuées à votre conjoint aidant ou cohabitant légal aidant (-) | I52: 0 | J52: 0 | K52: 0 | L52: 0 | O52: 2015 | P52: 12731.29 | Q52: 16123.93 | R52: 64495.73
B53: 1635 / 2635 Bénéfices antérieurement exonérés qui deviennent imposables (à l'exclusion des plus-values): montant de l'exonération pour pertes professionnelles futures qui a été demandée pour l'exercice d'imposition 2020 (+) | I53: 0 | J53: 0 | K53: 0 | L53: 0 | O53: 2016 | P53: 13108.32 | Q53: =R53/4 -> 16299.3525 | R53: 65197.41
B54: 1601 / 2601 Autres bénéfices antérieurement exonérés qui deviennent imposables (à l'exclusion des plus-values) (+) | I54: 0 | J54: 0 | K54: 0 | L54: 0 | O54: 2017 | P54: 14122.89 | Q54: =R54/4 -> 16657.1275 | R54: 66628.51
B55: 1602 / 2602 Résultats financiers (+) | I55: 0 | J55: 0 | K55: 0 | L55: 0 | O55: 2018 | P55: 14650.34 | Q55: 16975.65 | R55: 67902.6
B56: 1615 / 2615 Bénéfice correspondant aux frais réels de réalisation d'éléments de l'actif sur lesquels vous avez réalisé une plus-value (imposable ou non) pendant la période imposable, et qui ont été déduits antérieurement (+) | I56: 0 | J56: 0 | K56: 0 | L56: 0 | O56: 2019 | P56: 14838.59 | Q56: 17347.58 | R56: 69390.33
B57: 1607 / 2607 Indemnités imposables distinctement à 12,5 % (+) | I57: 0 | J57: 0 | K57: 0 | L57: 0 | O57: 2020 | P57: 15196.38 | Q57: 17530.97 | R57: 70123.89
B58: 1605 / 2605 Indemnités imposables distinctement à 16,5 %, dont parfois le droit passerelle (+) | I58: 0 | J58: 0 | K58: 0 | L58: 0 | O58: 2021 | P58: 15911.04 | Q58: 17592.11 | R58: 70368.42
B59: 1618 / 2618 Indemnités imposables distinctement à 33 % (+) | I59: 0 | J59: 0 | K59: 0 | L59: 0 | O59: 2022 | P59: 17332.35 | Q59: 18363.64 | R59: 73454.55
B60: 1610 / 2610 Indemnités imposables globalement, dont parfois le droit passerelle (+) | I60: 0 | J60: 0 | K60: 0 | L60: 0 | O60: 2023 | P60: 19643.99 | Q60: =0.25*R60 -> 21610.26 | R60: 86441.04
B61: Revenu professionnel imposable corrigé | I61: =+I50-I51-I52+I53+I54+I55+I56+I57+I58+I59+I60 -> 0 | J61: =+J50-J51-J52+J53+J54+J55+J56+J57+J58+J59+J60 -> 0 | K61: 0 | L61: 0 | O61: 2024
O62: 2025
O63: 2026
B64: 2. Catégorie ‘Profits’ | O64: 2027
B65: Profits = revenus comme indépendant de professions libérales, charges, offices ou autres occupations lucratives : recettes provenant de l'exercice de la profession | O65: 2028
B66: = les revenus des indépendants exerçant des fonctions (par exemple notaire, commissaire aux comptes, huissier) | O66: 2029
B67: ="Si le code “1650 of 2650” est complété pour au moins une année dans " & K27-3 & ", " & K27-2 & ", " & K27-1 & " ?" -> Si le code “1650 of 2650” est complété pour au moins une année dans 2020, 2021, 2022 ? | O67: 2030
B68: =" Si oui : Veuillez remplir les champs pour les 3 années." -> Si oui : Veuillez remplir les champs pour les 3 années.
B69: =" Si non: Veuillez remplir le montant pour l'année " & $K$27 & "." -> Si non: Veuillez remplir le montant pour l'année 2023.
B71: Profits | I71: ="X-3 (" & $K$27-3 & ")" -> X-3 (2020) | J71: ="X-2 (" & $K$27-2 & ")" -> X-2 (2021) | K71: ="X-1 (" & $K$27-1 & ")" -> X-1 (2022) | L71: ="X (" & $K$27 & ")" -> X (2023) | O71: Samenlevingsvorm
B72: 1650 / 2650 recettes provenant de l'exercice de la profession (+) | I72: 0 | J72: 0 | K72: 0 | L72: 0 | O72: 1 | P72: gehuwd | Q72: marié(e)
B73: 1669 / 2669 rémunérations attribuées à votre conjoint aidant ou cohabitant légal aidant (-) | I73: 0 | J73: 0 | K73: 0 | L73: 0 | O73: 2 | P73: wettelijk samenwonend | Q73: cohabitant légalement
B74: 1657 / 2657 autres frais professionnels (-) | I74: 0 | J74: 0 | K74: 0 | L74: 0 | O74: 3 | P74: ongehuwd | Q74: célibataire
B75: 1658 / 2658 Recettes obtenues par des sportifs dans le cadre de leurs prestations sportives (+) | I75: 0 | J75: 0 | K75: 0 | L75: 0 | O75: 4 | P75: feitelijk samenwonend | Q75: cohabitant de fait
B76: 1659 / 2659 Recettes obtenues par des formateurs, entraîneurs et accompagnateurs pour leur activité au profit de sportifs (+) | I76: 0 | J76: 0 | K76: 0 | L76: 0
B77: 1652 / 2652 Arriérés d'honoraires (+) | I77: 0 | J77: 0 | K77: 0 | L77: 0
B78: 1660 / 2660 Profits antérieurement exonérés qui deviennent imposables (à l'exclusion des plus-values): montant de l'exonération pour pertes professionnelles futures qui a été demandée pour l'exercice d'imposition 2020 (+) | I78: 0 | J78: 0 | K78: 0 | L78: 0
B79: 1651 / 2651 Autres profits antérieurement exonérés qui deviennent imposables (à l'exclusion des plus-values) (+) | I79: 0 | J79: 0 | K79: 0 | L79: 0
B80: 1674 / 2674 Profits correspondant aux frais réels de réalisation d'éléments de l'actif sur lesquels vous avez réalisé une plus-value (imposable ou non) pendant la période imposable, et qui ont été déduits antérieurement (+) | I80: 0 | J80: 0 | K80: 0 | L80: 0
B81: 1655 / 2655 Indemnités et primes imposables distinctement à 16,5 %, dont parfois le droit passerelle (+) | I81: 0 | J81: 0 | K81: 0 | L81: 0 | O81: gepresteerd voor 1e POZ
B82: 1667 / 2667 Indemnités et primes imposables distinctement à 33 % (+) | I82: 0 | J82: 0 | K82: 0 | L82: 0 | O82: Valider | P82: 1
B83: 1661 / 2661 Indemnités et primes imposables globalement, dont parfois le droit passerelle (+) | I83: 0 | J83: 0 | K83: 0 | L83: 0 | O83: Ne pas valider | P83: 2
B84: Revenu professionnel imposable corrigé belastbaar beroepsinkomen | I84: =I72-I73-I74+I75+I76+I77+I78+I79+I80+I81+I82+I83 -> 0 | J84: =J72-J73-J74+J75+J76+J77+J78+J79+J80+J81+J82+J83 -> 0 | K84: 0 | L84: =L72-L73-L74+L75+L76+L77+L78+L79+L80+L81+L82+L83 -> 0
B86: 3. Catégorie ‘conjoint aidant’ | O86: start POZ-teller | P86: =DATE(YEAR(I20)-I23,MONTH(I20)-J23,DAY(I20)) -> 2020-01-01
B87: ="Si le code “1450 of 2450” est complété pour au moins une année dans " & K27-3 & ", " & K27-2 & ", " & K27-1 & " ?" -> Si le code “1450 of 2450” est complété pour au moins une année dans 2020, 2021, 2022 ?
B88: =" Si oui : Veuillez remplir les champs pour les 3 années." -> Si oui : Veuillez remplir les champs pour les 3 années.
B89: =" Si non: Veuillez remplir le montant pour l'année " & $K$27 & "." -> Si non: Veuillez remplir le montant pour l'année 2023.
B91: Rémunération du conjoint aidant | I91: ="X-3 (" & $K$27-3 & ")" -> X-3 (2020) | J91: ="X-2 (" & $K$27-2 & ")" -> X-2 (2021) | K91: ="X-1 (" & $K$27-1 & ")" -> X-1 (2022) | L91: ="X (" & $K$27 & ")" -> X (2023)
B92: 1450 / 2450 Rémunérations attribuées par votre conjoint ou votre cohabitant légal (+) | I92: 0 | J92: 0 | K92: 0 | L92: 0
B93: 1452 / 2452 autres frais professionnels propres (-) | I93: 0 | J93: 0 | K93: 0 | L93: 0
B94: Revenu professionnel imposable corrigé | I94: =I92-I93 -> 0 | J94: =J92-J93 -> 0 | K94: =K92-K93 -> 0 | L94: =L92-L93 -> 0
B96: 4. Catégorie 'Revenus de remplacement' (uniquement ceux en remplacement de bénéfices ou profits! )
B98: Vervangingsinkomsten | I98: ="X-3 (" & $K$27-3 & ")" -> X-3 (2020) | J98: ="X-2 (" & $K$27-2 & ")" -> X-2 (2021) | K98: ="X-1 (" & $K$27-1 & ")" -> X-1 (2022) | L98: ="X (" & $K$27 & ")" -> X (2023)
B99: 1266 / 2266 Indemnités légales de maladie-invalidité - Indemnités ordinaires (+) | I99: 0 | J99: 0 | K99: 0 | L99: 0
B100: 1303 / 2303 Indemnités légales de maladie-invalidité - Indemnités de décembre 2020 (autorité publique) (+) | I100: 0 | J100: 0 | K100: 0 | L100: 0
B101: 1268 / 2268 Indemnités légales de maladie-invalidité - Arriérés (+) | I101: 0 | J101: 0 | K101: 0 | L101: 0
B102: 1269 / 2269 Indemnités complémentaires en cas de maladie ou d'invalidité (+) | I102: 0 | J102: 0 | K102: 0 | L102: 0
B103: 1271 / 2271 Autres revenus de remplacement, dont parfois le droit passerelle (+) | I103: 0 | J103: 0 | K103: 0 | L103: 0
B104: 1302 / 2302 Indemnités complémentaires en cas de maladie ou d’invalidité; indemnités en cas de maladie professionnelle ou d'accident du travail (légales et complémentaires); ou autres revenus de remplacement de décembre 2020 (autorité publique), dont parfois le droit passerelle (+) | I104: 0 | J104: 0 | K104: 0 | L104: 0
B105: 1272 / 2272 Arriérés d’indemnités complémentaires en cas de maladie ou d’invalidité, d’indemnités en cas de maladie professionnelle ou d'accident du travail (légales et complémentaires) ou d’autres revenus de remplacement, dont parfois le droit passerelle (+) | I105: 0 | J105: 0 | K105: 0 | L105: 0
B106: Revenu professionnel imposable corrigé | I106: =I99+I100+I101+I102+I103+I104+I105 -> 0 | J106: =J99+J100+J101+J102+J103+J104+J105 -> 0 | K106: 0 | L106: =L99+L100+L101+L102+L103+L104+L105 -> 0
B108: 5. Synthèse
B109: TOTAL par année | I109: ="X-3 (" & $K$27-3 & ")" -> X-3 (2020) | J109: ="X-2 (" & $K$27-2 & ")" -> X-2 (2021) | K109: ="X-1 (" & $K$27-1 & ")" -> X-1 (2022) | L109: ="X (" & $K$27 & ")" -> X (2023)
B110: Revenu professionnel imposable corrigé | I110: =IF(AND(I106+I94+I84+I61=0,COUNTIFS(I50:I60,"<>0")+COUNTIFS(I72:I83,"<>0")+COUNTIFS(I92:I93,"<>0")+ COUNTIFS(I99:I105,"<>0")=0),"NVT",I106+I94+I84+I61) -> NVT | J110: =IF(AND(J106+J94+J84+J61=0,COUNTIFS(J50:J60,"<>0")+COUNTIFS(J72:J83,"<>0")+COUNTIFS(J92:J93,"<>0")+ COUNTIFS(J99:J105,"<>0")=0),"NVT",J106+J94+J84+J61) -> NVT | K110: =IF(AND(K106+K94+K84+K61=0,COUNTIFS(K50:K60,"<>0")+COUNTIFS(K72:K83,"<>0")+COUNTIFS(K92:K93,"<>0")+ COUNTIFS(K99:K105,"<>0")=0),"NVT",K106+K94+K84+K61) -> NVT | L110: =L106+L94+L84+L61 -> 0
B112: Revenu de référence : Revenu professionnel imposable corrigé (moyen) | I112: =IF(COUNTIFS(I110:K110,"NVT")=3,L110,SUM(I110:K110)/(3-COUNTIFS(I110:K110,"NVT"))) -> 0
B114: Capitaux de pension déjà assurés dans des autres plans de pension (*) | J114: A prendre en compte
B115: Type | C115: Date d'effet | D115: Date terme | E115: Age terme | F115: Réversibilité | G115: Indexation | H115: Date de réduction | I115: Prestation attendue | J115: Capital | K115: Capital | L115: Coeff
J116: (passé) | K116: (passé + fut)
B117: Assurance de groupe | E117: =IF(D117="","",TRUNC(DAYS360($I$9,D117)/360)) ->  | F117: =IF(VLOOKUP($I$14,$T$9:$U$14,2,FALSE)>=3,0,80%) -> 0 | G117: 0.02 | J117: =IF(ISBLANK(H117),IFERROR(TRUNC(DAYS360(MAX(C117,$P$86),$I$6)/30)/TRUNC(DAYS360(C117,D117)/30)*I117*$J$143/L117,0),IF(H117>$P$86,IFERROR(TRUNC(DAYS360(MAX(C117,$P$86),MIN(H117,$I$6))/30)/TRUNC(DAYS360(C117,H117)/30)*I117*$J$143/L117,0),0)) -> 0 | K117: =IF(ISBLANK(H117),IFERROR(TRUNC(DAYS360(MAX(C117,$P$86),D117)/30)/TRUNC(DAYS360(C117,D117)/30)*I117*$J$143/L117,0),IF(H117>$P$86,IFERROR(TRUNC(DAYS360(MAX(C117,$P$86),H117)/30)/TRUNC(DAYS360(C117,H117)/30)*I117*$J$143/L117,0),0)) -> 0 | L117: =IF(I117=0,"",IF($G117=0,(VLOOKUP($E117,$O$21:$S$46,2)+$F117/80%*(VLOOKUP($E117,$O$21:$S$46,4)-VLOOKUP($E117,$O$21:$S$46,2))),(VLOOKUP($E117,$O$21:$S$46,3)+$F117/80%*(VLOOKUP($E117,$O$21:$S$46,5)-VLOOKUP($E117,$O$21:$S$46,3))))) -> 
F118: =IF(VLOOKUP($I$14,$T$9:$U$14,2,FALSE)>=3,0,80%) -> 0 | G118: 0.02 | J118: =IF(ISBLANK(H118),IFERROR(TRUNC(DAYS360(MAX(C118,$P$86),$I$6)/30)/TRUNC(DAYS360(C118,D118)/30)*I118*$J$143/L118,0),IF(H118>$P$86,IFERROR(TRUNC(DAYS360(MAX(C118,$P$86),MIN(H118,$I$6))/30)/TRUNC(DAYS360(C118,H118)/30)*I118*$J$143/L118,0),0)) -> 0 | K118: =IF(ISBLANK(H118),IFERROR(TRUNC(DAYS360(MAX(C118,$P$86),D118)/30)/TRUNC(DAYS360(C118,D118)/30)*I118*$J$143/L118,0),IF(H118>$P$86,IFERROR(TRUNC(DAYS360(MAX(C118,$P$86),H118)/30)/TRUNC(DAYS360(C118,H118)/30)*I118*$J$143/L118,0),0)) -> 0 | L118: =IF(I118=0,"",IF($G118=0,(VLOOKUP($E118,$O$21:$S$46,2)+$F118/80%*(VLOOKUP($E118,$O$21:$S$46,4)-VLOOKUP($E118,$O$21:$S$46,2))),(VLOOKUP($E118,$O$21:$S$46,3)+$F118/80%*(VLOOKUP($E118,$O$21:$S$46,5)-VLOOKUP($E118,$O$21:$S$46,3))))) -> 
F119: 0 | G119: 0.02 | J119: 0 | K119: 0
F120: 0 | G120: 0.02 | J120: 0 | K120: 0
F121: 0 | G121: 0.02 | J121: 0 | K121: 0
F122: 0 | G122: 0.02 | J122: 0 | K122: 0
J123: =SUM(J117:J122) -> 0 | K123: =SUM(K117:K122) -> 0
B125: (*) Nous devons tenir compte des autres capitaux de pension pour lesquels vous avez continué à payer la prime depuis que vous avez pris votre CPTI, (ou depuis le 01/01/2018, si vous avez choisi la
B126: prise en compte de la période entre le 01/01/2018 et la date à laquelle vous avez souscrit la CPTI): PLC(I) sociale, INAMI, promesse de pension sous seing privé, assurance groupe, ADE, fonds de
B127: pension, CPTI, EIP, PLCS, continuation à titre personnel
B131: Calcul règle de 80% - calcul du capital de pension CPTI maximal
B133: Revenu de référence | J133: =$I$112 -> 0
I134: X 80 %
I135: = | J135: =$J$133 * 0.8 -> 0
B137: Pension légale estimée | I137: - | J137: =MAX(IF((I19*0.25*(I17*12+J17)/DATEDIF(I16,I13,"m"))<VLOOKUP(YEAR(I6),O49:R67,2,0)*(I17*12+J17)/DATEDIF(I16,I13,"m"),VLOOKUP(YEAR(I6),O49:R67,2,0)*(I17*12+J17)/DATEDIF(I16,I13,"m"),IF((I19*0.25*(I17*12+J17)/DATEDIF(I16,I13,"m"))>VLOOKUP(YEAR(I6),O49:R67,3,0)*(I17*12+J17)/DATEDIF(I16,I13,"m"),VLOOKUP(YEAR(I6),O49:R67,3,0)*(I17*12+J17)/DATEDIF(I16,I13,"m"),(I19*0.25*(I17*12+J17)/DATEDIF(I16,I13,"m"))))+IF(J133*0.5*(DATEDIF(I16,I13,"m")-(I17*12)-J17)/DATEDIF(I16,I13,"m")>VLOOKUP(YEAR(I6),O48:R67,4,0)*0.5*(DATEDIF(I16,I13,"m")-(I17*12)-J17)/DATEDIF(I16,I13,"m"),VLOOKUP(YEAR(I6),O48:R67,4,0)*0.5*(DATEDIF(I16,I13,"m")-(I17*12)-J17)/DATEDIF(I16,I13,"m"),J133*0.5*(DATEDIF(I16,I13,"m")-(I17*12)-J17)/DATEDIF(I16,I13,"m")),VLOOKUP(YEAR(I6),O49:R67,2,0)) -> 19643.99
I138: = | J138: =$J$135-$J$137 -> -19643.99
B140: Nombres d'années prestées et à prester / 480 | I140: X | J140: =$I$24 / 480 -> 0.925
I141: = | J141: =$J$138*$J$140 -> -18170.69075
B143: Coefficient de conversion | I143: X | J143: =IF(VLOOKUP($I$14,$T$9:$U$14,2,FALSE)<3,VLOOKUP(MIN(IF($J$12>0,$I$12+1,$I$12),65),$O$7:$Q$12,3),VLOOKUP(MIN(IF($J$12>0,$I$12+1,$I$12),65),$O$7:$Q$12,2)) -> 13.4282
B144: Capital maximum (participation bénéficiaires inclus) | I144: = | J144: =$J$141*$J$143 -> -243999.6695
B146: Coefficient de participation au x bénéfices | I146: : 1,20
B147: Capital maximum (participation bénéficiaires exclus) | I147: = | J147: =$J$144/1.2 -> -203333.0579
B149: Capital de pension déjà assuré (passé et futur) | I149: - | J149: =K123 -> 0
B151: Capital pension encore à assurer | I151: = | J151: =$J$147-$J$149 -> -203333.0579
B153: Capital maximal assurable pour les années déjà prestées (Passé) | E153: AA MM | F153: =IF($I$24=480,IF($G$157=0,40-$F$157,39-$F$157),TRUNC(($I$24-$F$157*12-$G$157)/12)) -> 3 | G153: =$I$24-$F$157*12-$G$157-$F$153*12 -> 0 | J153: =J147*(I24-(I22*12+J22))/I24 -> -16486.46416
B154: Capitaux réduits déjà assurés | I154: - | J154: =J123 -> 0
B155: Capital de backservice à assurer | I155: = | J155: =IF($J$153-$J$154<0,0,$J$153-$J$154) -> 0
B157: Capital maximal pour les années restant à prester (Futur) | E157: AA MM | F157: =I22 -> 34 | G157: =J22 -> 0 | J157: =$J$147*($F$157*12+$G$157)/$I$24+IF($J$155=0,$J$153-$J$154,0) -> -203333.0579
B158: Capital déja assuré hors participation bénéficiaire | I158: - | J158: =$K$123-$J$123 -> 0
B159: Capital à assurer tenant compte des primes annuelles futures | I159: = | J159: =$J$157-$J$158 -> -203333.0579
B160: Maximum kapitaal backservice | C160: JJ MM | D160: =IF($I$24=480,IF($E$164=0,40-$D$164,39-$D$164),INT(($I$24-$D$164*12-$E$164)/12)) -> 3 | E160: =$I$24-$D$164*12-$E$164-$D$160*12 -> 0 | J160: =$J$147*($I$24-(($D$164*12)+$E$164))/$I$24 -> -16486.46416
B161: Reeds verzekerd pensioenkapitaal (verleden) | I161: - | J161: =$J$123 -> 0
B162: Te verzekeren backservice kapitaal | I162: = | J162: =IF($J$160-$J$161<0,0,$J$160-$J$161) -> 0
B164: Maximum kapitaal toekomst | C164: JJ MM | D164: =$I$22 -> 34 | E164: =$J$22 -> 0 | J164: =$J$147*(($D$164*12)+$E$164)/$I$24+IF(J162=0,$J$160-$J$161,0) -> -203333.0579
B165: Reeds verzekerd pensioenkapitaal (toekomst) | I165: - | J165: =$K$123-J123 -> 0
B166: Te verzekeren kapitaal tegen jaarpremie | I166: = | J166: =$J$164-$J$165 -> -203333.0579
B168: Capital pension maximum à assurer | J168: =$J$147 -> -203333.0579
B169: Capital pension déjà assuré | I169: - | J169: =$J$149 -> 0
B170: Capital pension encore à assurer | I170: = | J170: =$J$168-$J$169 -> -203333.0579
B172: Estimation de la prime max annuelle
B174: Frais Baloise | I174: 0
B175: Frais Courtier | I175: 0.02
B176: Taux de capitalisation | I176: 0.016
B179: (montants brut, taxes compris) | I179: Prime annuelle
B180: Max prime annuelle | I180: =MAX(0,J151*(1+4.4%)/(1-I174-I175)*(1-(1+I176-0.18%))/(1-(1+I176-0.18%)^(DAYS360(I6,I13)/360+1))) -> 0
B182: Prime unique | I182: =MAX(0,J155*(1+4.4%)/(1-$I$174-$I$175)*(1/(1+$I$176-0.18%)^(DAYS360($I$6,$I$13)/360))) -> 0
B183: Prime annuelle | I183: =MAX(0,J159*(1+4.4%)/(1-$I$174-$I$175)*(1-(1+$I$176-0.18%))/(1-(1+$I$176-0.18%)^(DAYS360($I$6,$I$13)/360+1))) -> 0
B185: Disclaimer :
B186: Cette application donne une première indication de la prime maximale déductible dans le cadre d'un contrat Convention de Pension pour Travailleurs Indépendants sans entreprise (CPTI)
B187: Le résultat est une simulation en ne vaut pas offre, ni conseil fiscal ou juridique.
B188: Nous vous prions de contacter votre courtier
B190: Traitement des données personnelles: votre vie privée
B191: Pour quelles raisons utilisons-nous vos données personnelles?
B192: En tant qu'assureur, nous traitons vos données personnelles. Les données personnelles sont des données portant sur votre statut personnel, par exemple votre âge, votre adresse,
B193: votre date de naissance.
B194: Elles sont nécessaires pour évaluer le risque et traiter vos polices et vos sinistres
B195: Nous n'utilisons ces données que dans ce but précis ou parce que la loi nous y oblige.
B196: Nous ne traitons vos données médicales que si vous nous donnez explicitement votre autorisation.
B197: Vos droits légaux
B198: Vous pouvez consulter vos données personnelles et les faire corriger, compléter, modifier ou supprimer.
B199: Plus d'informations
B200: Ceci n'est qu'un résumé de notre politique en matière de vie privée. Si vous voulez connaître précisément vos droits et vos obligations,
B201: n'hésitez pas à consulter notre politique en matière de vie privée complète sur notre site web (www.baloise.be/vieprivee). Nous pouvons aussi vous remettre une version papier.
B202: Données de contact
B203: Pour toutes vos questions sur la vie privée, n'hésitez pas à vous adresser à notre Data Protection Officer (DPO):
B204: Baloise Insurance - Data Protection Officer
B205: Posthofbrug 16
B206: 2600 Antwerpen
B207: Courriel: privacy@baloise.be
B209: Baloise Belgium SA | Entreprise d’assurances agréée sous le n° de code BNB 0096 | Baloise est le nom commercial de Baloise Belgium SA
B210: Siège: City Link, Posthofbrug 16, 2600 Antwerpen, Belgique | TVA BE 0400.048.883 | RPM Antwerpen, division Antwerpen | Tél.: +32 3 247 21 11
B211: Établissement: Boulevard du Roi Albert II 19, 1210 Bruxelles, Belgique | Tél.: +32 2 773 03 11 | IBAN: BE31 4100 0007 1155 | BIC: KREDBEBB | info@baloise.be | www.baloise.be
B212: ER: Baloise, City Link, Posthofbrug 16, 2600 Antwerpen, Belgique
